bitfinex/quotes_SOLUSD_20251223
["timestamp","ask_amount","ask_price","bid_price","bid_amount"]
[1766473982239,0.68,123.96,123.92,8.0697224]
[1766473982437,0.68,123.96,123.92,14.31891203]
[1766473983943,0.68,123.98,123.92,34.91321803]
[1766473984319,0.68,123.98,123.93,6.24918963]
[1766473984519,6.92918963,123.98,123.93,6.24918963]
[1766473984914,0.68,123.97,123.94,8.0684202]
[1766473986948,0.68,123.97,123.93,8.06907124]
[1766473988344,0.66,123.94,123.91,8.07020958]
[1766473988644,6.90918963,123.94,123.91,8.07020958]
[1766473989229,0.66,123.94,123.91,8.07020958]
[1766473990325,0.66,123.94,123.91,18.23937299]
[1766473990645,0.66,123.96,123.91,28.66614372]
[1766473990947,10.16916341,123.95,123.91,8.07020958]
[1766473991126,0.66,123.94,123.91,8.07020958]
[1766473992248,0.66,123.94,123.91,11.98111706]
[1766473992420,0.66,123.96,123.91,11.98111706]
[1766473992828,0.66,123.96,123.91,8.07020958]
[1766473993022,0.66,123.96,123.92,3.91090748]
[1766473993227,15.4,123.97,123.93,3.91090748]
[1766473993432,0.66,123.96,123.92,4.33090748]
[1766473993643,0.66,123.96,123.92,0.42]
[1766473994157,0.66,123.98,123.94,10.16496257]
[1766473995339,0.66,123.98,123.95,8.06776926]
[1766473998241,0.66,123.98,123.95,10.16496257]
[1766473999335,0.66,123.98,123.94,18.23338277]
[1766474000634,0.66,123.98,123.95,10.16496257]
[1766474000853,0.66,123.98,123.94,18.23338277]
[1766474001631,0.66,123.98,123.94,18.65338277]
[1766474002734,0.66,123.98,123.94,8.4884202]
[1766474003061,0.66,123.98,123.94,18.65338277]
[1766474003850,0.66,123.98,123.95,10.16496257]
[1766474004060,0.66,124.0,123.96,10.16496257]
[1766474004353,0.66,124.0,123.97,10.16496257]
[1766474004830,10.82496257,124.0,123.95,10.58496257]
[1766474005034,0.66,123.99,123.95,10.16496257]
[1766474005346,0.66,123.99,123.95,18.23231892]
[1766474006143,0.66,123.99,123.96,10.16496257]
[1766474007759,10.16496257,123.99,123.94,18.23313468]
[1766474007961,0.66,123.98,123.94,18.23313468]
[1766474008149,0.66,123.98,123.94,18.65313468]
[1766474008962,0.66,123.98,123.95,10.16496257]
[1766474009264,0.66,123.98,123.95,18.23270468]
[1766474011349,0.66,123.98,123.95,10.16496257]
[1766474012149,0.66,123.98,123.96,10.16496257]
[1766474013965,0.66,123.98,123.96,3.90827695]
[1766474016353,0.66,123.98,123.95,11.97590888]
[1766474017377,0.66,123.98,123.96,3.90827695]
[1766474019177,0.66,123.98,123.95,11.97590888]
[1766474019378,0.66,123.98,123.95,8.06763193]
[1766474019554,0.66,123.98,123.96,3.90827695]
[1766474023980,0.66,123.98,123.95,8.06763193]
[1766474024181,0.66,123.98,123.96,3.90827695]
[1766474025986,0.66,123.98,123.95,8.06763193]
[1766474026285,0.66,123.98,123.96,3.90827695]
[1766474028185,0.72,124.0,123.96,3.90827695]
[1766474028382,0.72,124.0,123.95,8.48763193]
[1766474028383,0.72,124.03,123.99,3.90827695]
[1766474028574,0.72,124.03,124.0,3.90827695]
[1766474028774,0.72,124.03,123.99,3.90827695]
[1766474029482,0.72,124.03,123.98,4.32827695]
[1766474029682,0.72,124.03,123.99,3.90827695]
[1766474030080,0.72,124.03,124.0,3.90827695]
[1766474030288,0.72,124.03,124.0,4.32827695]
[1766474030583,0.72,124.03,124.0,3.90827695]
[1766474031982,0.72,124.03,124.01,3.90827695]
[1766474032190,0.72,124.03,124.0,3.90827695]
[1766474032387,0.72,124.03,124.0,11.97251568]
[1766474033083,0.72,124.03,124.01,3.90827695]
[1766474033291,0.72,124.03,124.0,8.06423873]
[1766474033470,0.72,124.03,124.01,3.90827695]
[1766474033871,0.72,124.03,124.0,11.97251568]
[1766474034273,0.72,124.03,124.0,8.06423873]
[1766474034476,0.72,124.03,124.0,11.97251568]
[1766474035071,0.72,124.03,123.96,30.60522885]
[1766474035385,0.72,124.0,123.96,11.97525969]
[1766474035590,0.72,124.0,123.96,12.39525969]
[1766474036085,0.72,124.0,123.97,3.90827695]
[1766474036976,0.72,124.0,123.96,8.48698274]
[1766474036977,0.72,124.0,123.98,3.90827695]
[1766474038294,0.72,124.0,123.97,8.0662981]
[1766474038462,0.72,124.0,123.98,3.90827695]
[1766474039672,0.72,124.01,123.98,3.90827695]
[1766474040589,0.72,124.01,123.95,24.07645192]
[1766474040590,0.72,124.0,123.96,3.90827695]
[1766474040795,0.72,123.98,123.95,11.97595819]
[1766474040977,0.72,123.98,123.96,3.90827695]
[1766474041296,0.72,123.98,123.95,8.06768124]
[1766474041490,0.72,123.98,123.96,3.90827695]
[1766474041871,0.72,123.98,123.95,8.06768124]
[1766474042071,0.72,123.98,123.96,3.90827695]
[1766474042991,0.72,123.98,123.97,3.90827695]
[1766474044198,0.72,123.98,123.96,3.90827695]
[1766474044700,0.72,123.98,123.97,3.90827695]
[1766474046709,0.72,123.98,123.96,3.90827695]
[1766474047574,0.72,123.98,123.94,8.4882543]
[1766474047898,0.72,123.98,123.93,20.17177899]
[1766474047899,0.68,123.97,123.93,3.90827695]
[1766474048305,0.68,123.97,123.94,3.90827695]
[1766474049683,0.68,123.97,123.95,3.90827695]
[1766474050092,0.68,123.97,123.95,2.50191582]
[1766474050292,0.68,123.97,123.96,2.50191582]
[1766474050994,8.06452784,124.0,123.96,2.50191582]
[1766474052185,8.06388361,124.01,123.97,2.50191582]
[1766474052887,8.06388361,124.01,123.96,0.72]
[1766474053083,17.24191582,124.02,123.96,0.72]
[1766474053084,0.68,124.0,123.98,2.50191582]
[1766474053283,0.68,124.0,123.99,2.50191582]
[1766474053898,0.68,124.01,123.99,2.50191582]
[1766474054413,0.68,124.01,123.98,8.78548912]
[1766474054715,15.42,124.02,124.0,2.50191582]
[1766474055084,15.42,124.02,123.99,2.50191582]
[1766474055413,0.68,124.01,123.99,2.50191582]
[1766474055714,0.68,123.99,123.94,3.22191582]
[1766474055909,0.68,123.98,123.94,11.29009626]
[1766474056090,0.68,124.0,123.97,2.50191582]
[1766474056491,0.68,124.0,123.97,3.22191582]
[1766474057001,0.68,124.0,123.97,0.72]
[1766474057208,0.68,124.0,123.97,3.22191582]
[1766474058892,0.68,124.0,123.98,2.50191582]
[1766474060718,0.68,124.0,123.97,3.22191582]
[1766474062309,0.68,124.0,123.98,2.50191582]
[1766474062517,0.68,124.01,123.99,2.50191582]
[1766474062891,15.42,124.02,123.99,2.50191582]
[1766474064410,15.42,124.02,124.0,2.50191582]
[1766474065402,15.42,124.02,124.01,2.50191582]
[1766474066304,18.49919575,124.05,124.01,2.50191582]
[1766474066503,18.49919575,124.05,123.99,8.78491498]
[1766474066706,18.49919575,124.05,124.01,2.50191582]
[1766474067019,2.50191582,124.03,123.97,0.72]
[1766474067214,2.50191582,124.03,123.98,2.50191582]
[1766474067908,2.50191582,124.03,123.97,0.72]
[1766474068112,8.06321561,124.02,123.98,2.50191582]
[1766474068309,0.4,124.01,123.98,2.50191582]
[1766474068517,0.4,124.01,123.97,0.72]
[1766474068696,0.4,124.01,123.98,2.50191582]
[1766474069591,0.4,124.01,123.99,2.50191582]
[1766474069992,0.4,124.01,123.97,0.72]
[1766474070321,0.4,124.0,123.98,2.50191582]
[1766474070821,0.4,124.01,123.99,2.50191582]
[1766474071018,0.4,124.01,123.98,0.72]
[1766474071211,0.4,124.02,124.0,2.50191582]
[1766474071614,8.46277185,124.03,124.01,2.50191582]
[1766474071999,8.06277185,124.03,124.01,2.50191582]
[1766474072224,8.46277185,124.03,124.01,2.50191582]
[1766474072421,15.14,124.04,124.01,2.50191582]
[1766474072726,0.4,124.04,124.02,2.50191582]
[1766474074320,0.4,124.04,124.01,2.50191582]
[1766474078915,8.4623889,124.04,124.01,2.50191582]
[1766474080010,0.4,124.04,124.01,2.50191582]
[1766474080217,0.4,124.04,124.0,0.69]
[1766474080406,8.46195355,124.04,124.01,2.50191582]
[1766474081641,0.4,124.03,124.01,2.50191582]
[1766474082515,0.4,124.02,124.0,2.50191582]
[1766474082911,8.06259326,124.03,124.0,2.50191582]
[1766474083227,8.46259326,124.03,124.0,3.21191582]
[1766474085039,8.46259326,124.03,124.0,0.71]
[1766474085224,8.46259326,124.03,124.0,3.21191582]
[1766474085628,8.46259326,124.03,124.0,0.71]
[1766474085934,8.46259326,124.03,124.0,3.21191582]
[1766474087337,8.46259326,124.03,124.01,2.50191582]
[1766474087541,8.0620196,124.04,124.02,0.71]
[1766474087841,8.4620196,124.04,124.01,3.21191582]
[1766474088633,0.4,124.03,124.0,2.50191582]
[1766474088845,0.4,124.03,123.99,0.71]
[1766474088846,0.4,124.03,123.99,3.21191582]
[1766474089641,8.46302149,124.03,123.99,3.21191582]
[1766474091644,8.46302149,124.03,123.99,0.71]
[1766474091821,8.46302149,124.03,123.99,3.21191582]
[1766474092016,8.46302149,124.03,124.0,2.50191582]
[1766474092217,10.83767296,124.05,124.02,3.21191582]
[1766474092444,8.26079515,124.06,124.04,2.50191582]
[1766474092643,0.4,124.05,124.03,2.50191582]
[1766474093028,0.4,124.05,124.02,2.50191582]
[1766474093435,0.4,124.05,124.02,3.21191582]
[1766474094325,0.4,124.05,124.03,2.50191582]
[1766474094534,8.66079515,124.06,124.03,2.50191582]
[1766474094853,8.66079515,124.06,124.03,3.21191582]
[1766474095759,8.66079515,124.06,124.03,0.71]
[1766474095946,8.66079515,124.06,124.03,3.21191582]
[1766474096852,8.26079515,124.06,124.03,3.21191582]
[1766474097053,0.2,124.06,124.04,3.21191582]
[1766474098954,0.2,124.06,124.05,3.21191582]
[1766474100751,0.2,124.06,124.04,0.71]
[1766474101154,0.2,124.06,124.05,3.21191582]
[1766474101358,0.2,124.06,124.04,2.50191582]
[1766474101564,0.2,124.06,124.04,3.21191582]
[1766474101748,0.4,124.08,124.05,3.21191582]
[1766474102462,0.4,124.07,124.04,2.50191582]
[1766474102770,0.4,124.07,124.04,0.71]
[1766474102953,0.4,124.07,124.04,3.21191582]
[1766474104968,0.4,124.07,123.93,30.0]
[1766474104969,0.4,124.03,123.94,0.71]
[1766474105175,0.4,124.03,123.99,3.21191582]
[1766474105548,0.4,124.03,124.0,0.71]
[1766474105747,0.4,124.03,124.0,3.21191582]
[1766474106144,0.4,124.02,123.98,3.18191582]
[1766474106360,0.4,124.02,123.99,0.68]
[1766474106567,0.4,124.02,123.99,3.18191582]
[1766474106971,10.56454825,124.03,123.99,3.18191582]
[1766474107149,10.96454825,124.03,123.99,0.68]
[1766474108763,8.46263243,124.03,123.99,0.68]
[1766474109068,0.4,124.01,123.97,3.18191582]
[1766474109258,0.4,124.01,123.98,0.68]
[1766474109749,28.2190462,124.03,123.98,3.18191582]
[1766474110071,4.30734555,124.02,123.98,4.58734555]
[1766474111071,12.37074655,124.02,123.98,4.58734555]
[1766474111265,12.37074655,124.02,123.98,0.68]
[1766474111469,3.90734555,124.02,123.98,0.68]
[1766474111650,12.37013363,124.03,123.99,0.68]
[1766474112175,4.30734555,124.02,123.99,0.68]
[1766474112369,0.4,124.02,123.99,0.68]
[1766474112551,4.30734555,124.02,123.99,0.68]
[1766474113172,8.46337363,124.02,123.96,0.68]
[1766474113472,4.30734555,124.02,123.98,0.68]
[1766474113965,12.37057094,124.02,123.98,0.68]
[1766474114553,4.30734555,124.02,123.98,0.68]
[1766474115073,22.80716254,124.04,123.99,3.90734555]
[1766474115278,12.36948958,124.04,124.0,0.68]
[1766474116784,11.96997644,124.03,124.0,0.68]
[1766474117084,0.4,124.02,123.98,0.68]
[1766474117259,4.30734555,124.02,123.98,0.68]
[1766474117948,0.4,124.01,123.98,0.68]
[1766474118671,3.90734555,124.02,123.98,0.68]
[1766474118974,0.4,124.02,123.98,0.68]
[1766474119666,11.96935166,124.04,123.99,3.90734555]
[1766474119851,19.02734555,124.05,124.0,0.68]
[1766474120180,68.06630954,124.1,124.03,0.68]
[1766474120181,4.30734555,124.07,124.03,0.68]
[1766474120685,3.90734555,124.06,124.03,0.68]
[1766474120978,12.36825036,124.06,124.03,0.68]
[1766474121173,12.36825036,124.06,124.02,0.68]
[1766474121752,3.90734555,124.05,124.02,0.68]
[1766474121953,3.90734555,124.04,124.0,0.68]
[1766474122570,0.4,124.05,124.0,0.68]
[1766474122754,4.30734555,124.05,124.01,0.68]
[1766474123075,12.36876039,124.05,124.01,0.68]
[1766474125073,12.36876039,124.05,123.99,8.06501006]
[1766474125074,0.4,124.04,124.0,4.58734555]
[1766474125258,11.96876039,124.05,124.01,0.68]
[1766474125457,12.36876039,124.05,124.01,0.68]
[1766474131162,3.90734555,124.04,124.01,0.68]
[1766474132385,3.90734555,124.04,123.98,0.72]
[1766474132386,3.90734555,124.02,123.98,0.72]
[1766474141404,0.4,124.0,123.96,8.78708556]
[1766474141603,0.4,124.0,123.96,12.69443111]
[1766474141785,0.4,124.0,123.97,0.72]
[1766474141988,4.30734555,124.01,123.97,0.72]
[1766474144778,12.37067033,124.02,123.98,0.72]
[1766474144979,12.37013726,124.03,123.99,0.72]
[1766474145202,8.46279171,124.03,123.99,0.72]
[1766474145380,0.4,124.03,123.99,0.72]
[1766474145580,0.4,124.03,124.0,0.72]
[1766474146205,0.4,124.03,123.97,8.06634757]
[1766474146206,3.90734555,124.01,123.93,0.72]
[1766474146390,4.30734555,124.0,123.95,0.72]
[1766474147603,12.37220906,124.0,123.95,0.72]
[1766474148001,0.4,123.99,123.95,0.72]
[1766474149381,0.4,123.99,123.96,0.72]
[1766474151905,0.4,123.97,123.93,0.72]
[1766474152103,4.30734555,123.97,123.93,0.72]
[1766474152409,0.4,123.97,123.93,0.72]
[1766474152608,4.30734555,123.97,123.93,0.72]
[1766474152985,14.74501851,123.96,123.92,0.72]
[1766474153193,3.90734555,123.95,123.92,0.72]
[1766474153816,4.30734555,123.95,123.92,0.72]
[1766474154193,4.30734555,123.95,123.9,11.9781273]
[1766474154597,4.30734555,123.95,123.91,0.72]
[1766474154910,0.4,123.95,123.91,0.72]
[1766474155107,0.4,123.94,123.9,0.72]
[1766474155287,4.30734555,123.94,123.9,0.72]
[1766474155487,0.4,123.93,123.9,0.72]
[1766474156113,10.43767296,124.01,123.93,0.72]
[1766474156303,0.4,123.98,123.94,4.62734555]
[1766474156501,10.83767296,123.98,123.94,4.62734555]
[1766474156702,14.74501851,123.98,123.94,0.72]
[1766474156905,3.90734555,123.96,123.92,0.72]
[1766474157091,4.30734555,123.95,123.92,0.72]
[1766474157515,4.30734555,123.95,123.91,14.74]
[1766474157725,4.30734555,123.95,123.91,0.72]
[1766474158100,4.30734555,123.93,123.89,0.72]
[1766474158896,12.37655679,123.93,123.89,0.72]
[1766474159112,12.37655679,123.93,123.88,0.82]
[1766474159113,4.30734555,123.92,123.88,0.82]
[1766474159801,12.37655679,123.93,123.88,4.00734555]
[1766474160099,12.37655679,123.93,123.89,0.72]
[1766474160320,8.46921124,123.93,123.89,0.72]
[1766474160517,12.37655679,123.93,123.89,0.72]
[1766474160705,0.4,123.91,123.88,0.82]
[1766474160904,4.30734555,123.91,123.88,0.1]
[1766474161424,0.4,123.91,123.88,0.1]
[1766474161619,8.47073341,123.91,123.88,0.1]
[1766474161823,8.47073341,123.91,123.86,0.1]
[1766474161824,0.4,123.89,123.86,0.1]
[1766474162623,4.30734555,123.9,123.86,0.82]
[1766474162807,3.90734555,123.9,123.86,0.82]
[1766474163008,0.4,123.89,123.86,0.82]
[1766474163622,4.30734555,123.89,123.86,0.1]
[1766474163819,12.37919756,123.89,123.86,0.1]
[1766474163996,4.30734555,123.89,123.86,0.1]
[1766474164202,0.4,123.89,123.86,0.1]
[1766474166122,8.47174117,123.89,123.86,0.1]
[1766474166515,8.47174117,123.89,123.85,0.82]
[1766474166516,0.4,123.88,123.85,0.1]
[1766474166718,3.90734555,123.87,123.85,0.1]
[1766474166899,4.30734555,123.87,123.85,0.1]
[1766474167097,4.30734555,123.87,123.85,1e-08]
[1766474167098,0.4,123.86,123.85,1e-08]
[1766474168008,0.4,123.86,123.84,0.1]
[1766474168617,8.47373565,123.86,123.84,0.1]
[1766474170426,12.3810812,123.86,123.84,1e-08]
[1766474170808,0.4,123.91,123.86,0.72]
[1766474171008,0.4,123.9,123.87,3.90734555]
[1766474171205,0.4,123.9,123.86,0.72]
[1766474171408,0.4,123.9,123.85,3.90734555]
[1766474171409,3.90734555,123.9,123.85,3.90734555]
[1766474171613,0.4,123.89,123.85,3.90734555]
[1766474171829,0.4,123.9,123.85,0.72]
[1766474172017,0.4,123.9,123.86,2.50520508]
[1766474172617,0.4,123.9,123.86,3.22520508]
[1766474173928,10.57575985,123.91,123.87,0.72]
[1766474174129,10.97575985,123.91,123.87,0.72]
[1766474174333,0.4,123.9,123.86,3.22520508]
[1766474175024,0.4,123.9,123.86,0.72]
[1766474175224,8.47108321,123.9,123.86,3.22520508]
[1766474175426,10.97628829,123.9,123.86,0.72]
[1766474176343,8.47108321,123.9,123.86,3.22520508]
[1766474176632,0.4,123.91,123.87,3.22520508]
[1766474176850,10.97561131,123.91,123.87,0.72]
[1766474177142,2.90520508,123.9,123.84,0.72000001]
[1766474177309,2.90520508,123.9,123.85,3.22520508]
[1766474177513,2.90520508,123.9,123.86,0.72]
[1766474177932,2.50520508,123.93,123.88,3.22520508]
[1766474178236,0.4,123.92,123.88,0.72]
[1766474178419,2.90520508,123.92,123.88,0.72]
[1766474178615,10.97523322,123.92,123.88,0.72]
[1766474179041,2.50520508,123.96,123.91,0.72]
[1766474179236,2.90520508,123.95,123.91,0.72]
[1766474179414,2.50520508,123.94,123.91,0.72]
[1766474179617,0.4,123.95,123.91,0.72]
[1766474179817,2.50520508,123.94,123.91,0.72]
[1766474180319,10.97306539,123.95,123.91,0.72]
[1766474180828,8.46786031,123.95,123.91,3.22520508]
[1766474181242,10.97306539,123.95,123.91,0.72]
[1766474181542,8.46786031,123.95,123.91,3.22520508]
[1766474182012,18.50500649,123.96,123.91,2.50520508]
[1766474182211,28.08287804,123.96,123.91,2.50520508]
[1766474182415,28.08287804,123.96,123.91,3.22520508]
[1766474182416,0.4,123.95,123.91,3.22520508]
[1766474183060,10.43767296,123.96,123.92,0.72]
[1766474183225,8.46581706,123.98,123.94,0.72]
[1766474183421,25.57767296,123.99,123.95,0.72]
[1766474183730,14.74,123.99,123.96,2.50520508]
[1766474184142,15.14,124.01,123.97,0.72]
[1766474184346,15.14,124.01,123.97,3.22520508]
[1766474184515,23.20386983,124.01,123.97,3.22520508]
[1766474184838,25.70907491,124.01,123.97,0.72]
[1766474185328,2.90520508,123.99,123.95,0.72]
[1766474186039,10.97153562,123.98,123.94,0.72]
[1766474186346,2.50520508,123.97,123.94,0.72]
[1766474187440,25.71153562,123.98,123.94,0.72]
[1766474187937,2.50520508,123.95,123.91,8.07031697]
[1766474188142,43.3708732,123.98,123.92,2.50520508]
[1766474188445,0.4,123.97,123.93,0.72]
[1766474188620,2.90520508,123.96,123.91,2.50520508]
[1766474188944,2.90520508,123.96,123.9,0.72]
[1766474188945,2.90520508,123.94,123.9,0.72]
[1766474189440,8.06907124,123.93,123.9,0.72]
[1766474190520,17.24520508,123.92,123.86,0.72]
[1766474190714,14.74,123.92,123.89,0.72]
[1766474190936,8.46907124,123.93,123.89,0.72]
[1766474191143,8.06907124,123.93,123.89,3.22520508]
[1766474191848,8.06907124,123.93,123.89,3.20520508]
[1766474193732,8.06907124,123.93,123.9,0.7]
[1766474194848,15.14,123.94,123.9,3.20520508]
[1766474195021,14.74,123.94,123.91,3.20520508]
[1766474195420,18.50605367,123.95,123.91,3.20520508]
[1766474195620,33.24605367,123.95,123.91,3.20520508]
[1766474197125,33.24605367,123.95,123.91,2.50520508]
[1766474197327,22.80838071,123.95,123.92,0.68]
[1766474197926,24.23556973,123.97,123.94,2.50520508]
[1766474198126,14.74,123.99,123.95,3.18520508]
[1766474198353,25.57767296,123.99,123.95,0.68]
[1766474198651,28.08287804,123.99,123.95,0.68]
[1766474199053,14.74,123.99,123.95,3.18520508]
[1766474199258,25.31060077,123.99,123.95,0.68]
[1766474199759,2.50520508,123.98,123.95,0.68]
[1766474200634,2.90520508,123.98,123.94,0.68]
[1766474201538,8.06646769,123.97,123.94,0.68]
[1766474205261,8.06646769,123.97,123.94,3.18520508]
[1766474205435,0.4,123.98,123.95,0.68]
[1766474205436,8.06581706,123.98,123.95,0.68]
[1766474205850,8.06581706,123.98,123.95,3.18520508]
[1766474206152,8.06581706,123.98,123.95,6.93443365]
[1766474206545,8.06581706,123.98,123.95,0.68]
[1766474208445,29.45972354,123.99,123.95,0.68]
[1766474209562,23.20528989,123.99,123.95,0.68]
[1766474209858,29.45972354,123.99,123.95,0.68]
[1766474210157,23.20528989,123.99,123.95,0.68]
[1766474210346,29.45972354,123.99,123.95,0.68]
[1766474210839,29.05972354,123.99,123.95,0.68]
[1766474212033,29.45972354,123.99,123.95,0.68]
[1766474214657,23.20528989,123.99,123.95,0.68]
[1766474214855,8.46528989,123.99,123.95,0.68]
[1766474215162,22.80528989,123.99,123.96,0.68]
[1766474215863,22.80528989,123.99,123.93,6.25443365]
[1766474215864,6.65443365,123.98,123.93,6.25443365]
[1766474216164,14.74,123.97,123.94,0.68]
[1766474216336,21.39443365,123.97,123.94,0.68]
[1766474217165,23.20706753,123.97,123.94,0.68]
[1766474217342,29.46150118,123.97,123.94,0.68]
[1766474218735,23.20706753,123.97,123.94,0.68]
[1766474218940,29.46150118,123.97,123.94,0.68]
[1766474219668,0.4,123.94,123.91,0.68]
[1766474219872,0.4,123.94,123.9,8.06984416]
[1766474219873,21.39443365,123.94,123.9,8.74984416]
[1766474220170,14.74,123.94,123.91,0.68]
[1766474221169,14.74,123.94,123.92,0.68]
[1766474221339,29.46591415,123.96,123.92,0.68]
[1766474221764,37.53361708,123.96,123.92,0.68]
[1766474222670,20.16348802,123.99,123.95,6.25443365]
[1766474222861,8.06516654,123.99,123.96,0.68]
[1766474223164,15.14,123.98,123.94,0.68]
[1766474223345,6.25443365,123.97,123.94,0.68]
[1766474223536,15.14,123.98,123.94,6.93443365]
[1766474223739,23.20635738,123.98,123.95,0.68]
[1766474224354,22.80635738,123.98,123.95,0.68]
[1766474224585,14.74,123.98,123.96,0.68]
[1766474224753,14.74,123.98,123.96,6.93443365]
[1766474224957,8.46465231,124.0,123.97,0.68]
[1766474225261,23.20465231,124.0,123.97,0.68]
[1766474226750,14.74,124.0,123.97,0.68]
[1766474226955,14.74,124.0,123.98,0.66]
[1766474227170,10.43767296,124.02,123.99,2.50123551]
[1766474227467,14.74,124.03,124.0,0.66]
[1766474227666,10.43767296,124.04,124.01,0.66]
[1766474227846,25.17767296,124.04,124.01,0.66]
[1766474228047,14.74,124.04,124.02,0.66]
[1766474228247,14.74,124.04,124.02,3.16123551]
[1766474228453,8.0595066,124.08,124.04,0.66]
[1766474228667,22.7995066,124.08,124.04,2.50123551]
[1766474228874,25.17767296,124.08,124.05,0.66]
[1766474229248,14.74,124.08,124.05,0.66]
[1766474229666,25.17767296,124.08,124.05,0.66]
[1766474230064,25.17767296,124.08,124.05,6.90455798]
[1766474230245,25.17767296,124.08,124.03,8.06239211]
[1766474230458,14.74,124.08,124.05,6.24455798]
[1766474230670,6.44455798,124.1,124.07,6.24455798]
[1766474230671,0.2,124.1,124.07,6.24455798]
[1766474230855,0.2,124.1,124.08,6.24455798]
[1766474231178,0.2,124.1,124.06,8.06043471]
[1766474231381,0.2,124.1,124.07,6.24455798]
[1766474231542,0.2,124.1,124.08,6.24455798]
[1766474231747,0.2,124.11,124.09,6.24455798]
[1766474231948,0.2,124.11,124.08,6.24455798]
[1766474232169,0.2,124.11,124.06,8.06041985]
[1766474232170,0.2,124.11,124.09,6.90455798]
[1766474233354,0.2,124.12,124.1,0.66]
[1766474234353,0.2,124.12,124.1,10.79953514]
[1766474234552,0.2,124.12,124.1,0.66]
[1766474234794,0.2,124.12,124.1,10.79953514]
[1766474234966,0.2,124.12,124.1,0.66]
[1766474235553,0.2,124.12,124.08,0.66]
[1766474235776,0.2,124.12,124.09,0.66]
[1766474235972,10.63767296,124.15,124.1,0.66]
[1766474235973,19.4125748,124.15,124.1,0.66]
[1766474236283,10.13953514,124.14,124.1,0.66]
[1766474236664,21.4972081,124.15,124.11,0.66]
[1766474236889,29.55211694,124.15,124.11,0.66]
[1766474237376,0.72,124.11,124.06,10.79953514]
[1766474237556,10.85953514,124.11,124.06,10.79953514]
[1766474237756,0.72,124.1,124.06,10.79953514]
[1766474237975,10.85953514,124.1,124.06,0.66]
[1766474238153,10.85953514,124.09,124.05,0.66]
[1766474239057,10.85953514,124.08,124.03,10.79953514]
[1766474239251,10.85953514,124.07,124.03,0.66]
[1766474239467,0.72,124.07,124.03,10.79953514]
[1766474239673,0.72,124.08,124.04,10.79953514]
[1766474239982,0.72,124.08,124.04,18.86144781]
[1766474240775,10.13953514,124.09,124.05,0.66]
[1766474241183,10.13953514,124.09,124.05,10.79953514]
[1766474241489,10.85953514,124.09,124.05,10.79953514]
[1766474242059,10.85953514,124.09,124.05,0.66]
[1766474244686,18.91829659,124.09,124.05,0.66]
[1766474244880,10.13953514,124.08,124.05,0.66]
[1766474245471,10.85953514,124.09,124.05,0.66]
[1766474245972,18.91821719,124.09,124.05,0.66]
[1766474246185,10.85953514,124.08,124.03,10.13953514]
[1766474246486,10.85953514,124.08,124.04,0.66]
[1766474247085,0.72,124.08,124.05,0.66]
[1766474247770,10.85953514,124.08,124.02,0.66]
[1766474248082,10.85953514,124.08,124.04,0.66]
[1766474250184,10.13953514,124.08,124.04,0.66]
[1766474250380,10.85953514,124.05,124.01,0.66]
[1766474250583,10.85953514,124.04,123.99,18.20453979]
[1766474250796,25.15767296,124.07,123.94,19.36]
[1766474250797,10.85953514,124.03,123.94,19.36]
[1766474250967,10.85953514,124.03,123.98,10.79953514]
[1766474251158,10.13953514,124.02,123.98,0.66]
[1766474251578,0.72,124.01,123.98,0.66]
[1766474251786,10.85953514,124.02,123.98,0.66]